Cogmind - Beta 16.1 @@@ ROGUE MODE // 2026.03.16 @ 18:52:20 Player: T216 Result: Destroyed by H-55 Commando with Gauss Rifle Performance ------------- Evolutions (2) 1000 Regions Visited (5) 1000 Robots Destroyed (96) 480 Value Destroyed (3524) 3524 Prototype IDs (17) 340 Alien Tech Used (0) 0 Bonus (641) 641 TOTAL SCORE: 6985 Bonus ------- High Alert Combat Kills 441 Entered Garrisons 200 Cogmind --------- Core Integrity 0/550 Matter 245/300 Energy 160/160 System Corruption 0% Temperature Cool (0) Movement Walking (110) Location -8/Materials Parts ------- > --- POWER (1) -------- Light Nuclear Core > --- PROPULSION (3) --- Aluminum Leg Aluminum Leg Carbon-fiber Leg > --- UTILITY (4) ------ Medium Storage Unit Improved Sensor Array Improved Signal Interpreter > --- WEAPON (3) ------- Rocket Launcher Katana > --- INVENTORY (10) --- Light Nuclear Core Light Nuclear Core Meta Core Aluminum Leg Carbon-fiber Leg Improved Heat Sink Recoil Stabilizer Reaction Control System Minigun Multitool Peak State ------------ > --- POWER ------------ Light Deuterium Engine > --- PROPULSION ------- Aluminum Leg Aluminum Leg Carbon-fiber Leg > --- UTILITY ---------- Medium Storage Unit Improved Signal Interpreter Makeshift Hacking Suite Makeshift Hacking Suite > --- WEAPON ----------- Plasma Cannon Assault Rifle Flak Cannon > --- INVENTORY -------- Light Ion Engine Light Nuclear Core Meta Core Improved Sensor Array Signal Interpreter Improved Light Armor Plating Improved Light Armor Plating Light Cannon Mining Laser Multitool [Rating: 31] Favorites ----------- Power Ion Engine Engine Ion Engine Power Core Light Nuclear Core Propulsion Aluminum Leg Treads Light Treads Leg Aluminum Leg Wheel Compact Wheel Utility Medium Storage Unit Device Seismic Detector Storage Medium Storage Unit Processor Improved Signal Interpreter Hackware Makeshift Hacking Suite Protection Light Armor Plating Weapon Assault Rifle Energy Gun Subdweller Laser Energy Cannon Plasma Cannon Ballistic Gun Assault Rifle Ballistic Cannon Light Cannon Launcher Rocket Launcher Special Weapon Mining Laser Slashing Weapon Katana Build | -11 -10 -10 -8 -8 -8 ------- Run | Yrd Mat Sub Mat Gar Mat Slots Evolved 4 | . . . 4 . . Power . | . . . . . . Propulsion 1 | . . . 1 . . Utility 2 | . . . 2 . . Weapon 1 | . . . 1 . . Parts Attached 67 | 7 9 7 30 14 . Power 12 | 1 1 1 7 2 . Engine 4 | 1 1 1 1 . . Core 8 | . . . 6 2 . Reactor . | . . . . . . Propulsion 21 | 2 1 2 9 7 . Treads 2 | 2 . . . . . Leg 16 | . . . 9 7 . Wheel 3 | . 1 2 . . . Hover . | . . . . . . Flight . | . . . . . . Utility 15 | 2 2 . 8 3 . Device 4 | 1 . . 1 2 . Storage 2 | 1 1 . . . . Processor 1 | . . . 1 . . Hackware 2 | . . . 2 . . Protection 6 | . 1 . 4 1 . Artifact . | . . . . . . Weapon 19 | 2 5 4 6 2 . Energy Gun 3 | 1 . 2 . . . Energy Cannon 1 | . . . 1 . . Ballistic Gun 9 | 1 3 2 2 1 . Ballistic Cannon 3 | . 1 . 2 . . Launcher 1 | . . . . 1 . Special Weapon 1 | . 1 . . . . Impact Weapon . | . . . . . . Slashing Weapon 1 | . . . 1 . . Piercing Weapon . | . . . . . . Special Melee Weapon . | . . . . . . Unidentified Prototypes . | . . . . . . Parts Lost 18 | . . 3 4 10 1 Power 4 | . . 1 . 3 . Propulsion 5 | . . 1 2 2 . Utility 4 | . . . . 3 1 Weapon 5 | . . 1 2 2 . Highest Loss Streak 5 | . . 1 2 5 1 To Critical Strikes . | . . . . . . Average Backups 9 | 4 9 9 9 8 10 Power . | . 1 . . . 2 Propulsion . | 2 2 . . 2 2 Utility 3 | . 3 3 3 2 3 Weapon 2 | 1 3 3 2 1 1 Tool/Special . | . . . . . . Unused Backups 15 | . 6 2 2 . 5 Power 2 | . . . . . 2 Propulsion 4 | . 4 . . . . Utility 5 | . 1 2 1 . 1 Weapon 2 | . 1 . 1 . . Tool/Special 2 | . . . . . 2 Average Slot Usage (%) 97 | . 99 98 96 91 89 Engine 9 | . 14 13 2 . . Core 2 | . . . 6 8 9 Treads 9 | . 27 11 . . . Leg 9 | . . . 23 26 27 Wheel 7 | . . 15 2 . . Device 9 | . 9 12 3 8 9 Storage 12 | . 14 14 9 9 9 Processor 3 | . . . 7 9 9 Hackware 2 | . . . 9 . . Protection 3 | . 4 1 4 6 8 Energy Gun 6 | . 1 13 . . . Energy Cannon 1 | . . . 4 . . Ballistic Gun 13 | . 25 12 10 13 . Ballistic Cannon 3 | . 1 2 10 . . Slashing Weapon 1 | . . . . 8 9 Peak Build Rating 31 | 7 8 12 31 30 24 Average Rating 15 | 5 7 10 26 25 23 On Entrance 13 | . 7 8 12 30 24 Avg Prop Armor Cover (%) 10 | . 9 10 6 . . Naked Turns . | . . . . . . Heaviest Build 36 | 12 22 26 36 31 25 Greatest Support 40 | 40 40 40 35 35 35 Greatest Overweight (x) 2 | . 1 1 2 . . Average Overweight (x) . | . . . . . . Largest Inventory Capacity 10 | 8 10 10 10 10 10 Average Capacity 9 | 6 9 10 10 10 10 Most Carried 10 | 7 10 10 10 10 10 Average Carried 9 | 4 9 9 9 8 10 Final Capacity 10 | 8 10 10 10 10 10 Final Carried 10 | 7 10 10 10 10 10 Class Distribution -------------------- 47% | Mutant 31% | Scavenger-Mutant 6% | Hacker-Gunner 4% | Tank 4% | Scavenger-Skirmisher Dominant Class ---------------- Mutant | -10/Materials Mutant | -10/Subcaves Hacker-Gunner | -8/Materials Scavenger-Mutant | -8/Garrison Scavenger-Mutant | -8/Materials Resources | -11 -10 -10 -8 -8 -8 ----------- Run | Yrd Mat Sub Mat Gar Mat Matter Collected 2632 | 276 419 302 1205 420 10 Remotely . | . . . . . . Salvage Created 3419 | 82 516 350 1644 748 79 Parts 189 | 5 29 27 92 29 7 Haulers Intercepted 4 | . 2 . 2 . . Recyclers Shooed 1 | . 1 . . . . Parts Field Recycled . | . . . . . . Retrieved Matter . | . . . . . . Parts Self-Destructed 11 | . . 11 . . . Prevented . | . . . . . . Parts Restored . | . . . . . . Kills | -11 -10 -10 -8 -8 -8 ------- Run | Yrd Mat Sub Mat Gar Mat Combat Hostiles Destroyed 77 | . 11 11 35 19 1 Melee 16 | . . . 5 10 1 Guns 32 | . 8 9 10 5 . Cannons 25 | . 3 2 20 . . AOE 4 | . . . . 4 . Classes Destroyed 14 | 2 4 1 5 2 . Builder 3 | . . . 1 . 2 Tunneler 1 | 1 . . . . . Hauler 4 | . 2 . 2 . . Recycler 4 | 1 . . 3 . . Operator 2 | . . . 2 . . Watcher 5 | . 2 . 3 . . Swarmer 15 | . 3 2 7 3 . Cutter 2 | . . . . 2 . Grunt 33 | . 8 . 13 12 . Brawler 2 | . . . . 2 . Duelist 1 | . . . 1 . . Sentry 12 | . . . 11 . 1 Hunter 3 | . . . 3 . . Subdweller 9 | . . 9 . . . Best Kill Streak 5 | 1 2 2 5 4 3 Combat Bots Only 4 | . 2 2 4 4 1 Max Kills in Single Turn 3 | 1 1 1 2 3 1 Gunslinging . | . . . . . . Exploded 3 | . . . . 3 . Melee 1 | . . . 1 1 1 Uniques/NPCs Destroyed . | . . . . . . Combat | -11 -10 -10 -8 -8 -8 -------- Run | Yrd Mat Sub Mat Gar Mat Hostile Shots Fired 418 | . 46 40 186 136 10 Missed 120 | . 16 13 49 38 4 Hits 298 | . 30 27 137 98 6 Melee 8 | . . . 2 6 . Projectile 290 | . 30 27 135 92 6 AOE 1 | . . . . 1 . Critical Strikes 13 | . . 1 4 8 . Damage Taken 4240 | . 318 602 1646 1577 97 Core 737 | . 40 138 209 330 20 Absorbed by Shields . | . . . . . . Core Remaining (%) 64 | 100 . 28 . . . Volleys Fired 268 | 6 48 52 115 42 5 Largest 3 | 2 2 2 3 3 1 Hottest 137 | 70 100 90 137 125 33 Shots Fired 516 | 12 94 79 254 72 5 Gun 327 | 12 75 59 119 62 . Cannon 179 | . 17 20 135 7 . Launcher 8 | . . . . 3 5 Special 2 | . 2 . . . . Kinetic 408 | 6 92 32 216 62 . Thermal 100 | 6 2 47 38 7 . Explosive 8 | . . . . 3 5 Electromagnetic . | . . . . . . Robot Hit Streak 28 | 7 7 28 18 10 1 Robot Miss Streak 6 | 1 4 1 4 5 6 Penetration Max . | . . . . . . Secondary Targets . | . . . . . . Shots Hit Robots 359 | 10 51 47 180 68 3 Core Hits 183 | 3 28 19 99 27 7 Critical Kills 1 | . . . . 1 . Critical Parts Destroyed 1 | . 1 . . . . Critical Strikes 10 | 1 2 . 2 5 . Burn 1 | 1 . . . . . Destroy 2 | . 1 . . 1 . Blast 2 | . 1 . 1 . . Sever 5 | . . . 1 4 . Melee Attacks 112 | . . . 16 92 4 Impact . | . . . . . . Slashing 112 | . . . 16 92 4 Piercing . | . . . . . . Sneak Attacks 2 | . . . 2 . . Combat Hostiles . | . . . . . . Follow-up Attacks . | . . . . . . Damage Inflicted 6861 | 103 696 882 3187 1680 313 Guns 2675 | 103 533 597 897 545 . Cannons 2212 | . 151 285 1749 27 . Explosions 480 | . . . . 195 285 Melee 1475 | . . . 534 913 28 Ramming 19 | . 12 . 7 . . Kinetic 3778 | 41 684 441 2067 545 . Thermal 1109 | 62 . 441 579 27 . Explosive 480 | . . . . 195 285 Electromagnetic . | . . . . . . Impact . | . . . . . . Slashing 1475 | . . . 534 913 28 Piercing . | . . . . . . Highest Corruption . | . . . . . . Average Corruption . | . . . . . . Corruption Purged . | . . . . . . Corruption Blocked . | . . . . . . Overload Shots . | . . . . . . Overflow Damage 93 | . 6 . 74 13 . Projectiles 6 | . 6 . . . . Explosions . | . . . . . . Melee 87 | . . . 74 13 . Knockbacks 32 | . 5 5 22 . . Impact 1 | . 1 . . . . Kinetic 28 | . 4 5 19 . . Secondary 3 | . . . 3 . . Self-Inflicted Damage 26 | . . . 3 23 . Shots 1 | . . . . 1 . Rammed 6 | . 5 . 1 . . Targets Rammed 9 | . 5 . 4 . . Kicked 3 | . . . 3 . . Crushed . | . . . . . . Highest Temperature 475 | 70 40 . 475 72 . Average Temperature 91 | 30 9 . 111 30 . Received Heat Transfer 1632 | . 135 120 504 873 . Effects 2 | . . . 2 . . Interference 2 | . . . 2 . . Siege Activations . | . . . . . . Martial Activations . | . . . . . . Shielding Activations . | . . . . . . Robots Disrupted . | . . . . . . Combat Hostiles . | . . . . . . Robots Corrupted . | . . . . . . Combat Hostiles . | . . . . . . Parts Fried . | . . . . . . Impact Corruptions . | . . . . . . Robots Melted . | . . . . . . Combat Hostiles . | . . . . . . Parts Melted . | . . . . . . Heat Transferred 2009 | 259 . 550 1150 50 . Parts Sabotaged . | . . . . . . Parts Stolen . | . . . . . . Parts Stripped . | . . . . . . Power Chain Reactions . | . . . . . . Alert | -11 -10 -10 -8 -8 -8 ------- Run | Yrd Mat Sub Mat Gar Mat Maximum Alert Level 4 | . . . 2 4 2 Low Security (%) 47 | 100 100 . 37 . . Level 1 9 | . . . 23 1 . Level 2 26 | . . . 39 34 100 Level 3 13 | . . . . 54 . Level 4 2 | . . . . 10 . Level 5 . | . . . . . . High Security . | . . . . . . Max Security . | . . . . . . Peak Influence 1206 | 5 106 . 595 1206 636 Initial 587 | . . . . 376 587 Average 346 | . 27 . 304 810 580 Influence Increases 2667 | 10 388 55 1185 930 99 Destroy 0b10 Robot/C 1360 | . 220 40 700 380 20 Destroy 0b10 Robot/NC 95 | 10 20 . 55 . 10 Destroy Leader 298 | . 58 . 210 20 10 Successful Hack 49 | . 14 . 26 . 9 Select Force Hacks 60 | . 30 . 30 . . Disable Machine 150 | . 15 . 75 60 . Anti-Garrison Action 300 | . . . . 300 . Destroy Structure 130 | . 1 . 14 80 35 Partial Spotted 15 | . . . 15 . . Lose Combat Pursuer 210 | . 30 15 60 90 15 Influence Decreases 2031 | 10 340 103 606 303 669 Entered New Map 846 | . . 24 . 203 619 Time Decay 1015 | 10 340 59 566 . 40 Lost Part 170 | . . 20 40 100 10 Squads Dispatched 15 | . 3 . 10 . 2 Investigation 6 | . 2 . 3 . 1 Extermination . | . . . . . . Reinforcement 4 | . 1 . 2 . 1 Assault . | . . . . . . Garrison 5 | . . . 5 . . Intercept . | . . . . . . Searches Triggered . | . . . . . . Construction Impeded 1 | . . . . . 1 Haulers Reinforced . | . . . . . . Active Scanning Responses . | . . . . . . Cargo Convoy Interrupts . | . . . . . . Stealth | -11 -10 -10 -8 -8 -8 --------- Run | Yrd Mat Sub Mat Gar Mat Distress Signals 9 | . 2 . 7 . . Communications Jammed . | . . . . . . Distress Signals . | . . . . . . Times Spotted 116 | . 22 11 55 24 4 Peak Tracking Total 6 | . 6 3 6 5 2 Tactical Retreats 13 | . 2 1 3 6 1 Traps | -11 -10 -10 -8 -8 -8 ------- Run | Yrd Mat Sub Mat Gar Mat Traps Triggered 13 | . 3 3 2 4 1 Indirectly . | . . . . . . Trap Hack Attempts . | . . . . . . Triggered . | . . . . . . Disarmed . | . . . . . . Reprogrammed . | . . . . . . Reused . | . . . . . . Traps Extracted . | . . . . . . Installed . | . . . . . . Triggered . | . . . . . . Machines | -11 -10 -10 -8 -8 -8 ---------- Run | Yrd Mat Sub Mat Gar Mat Machines Disabled 13 | . 1 1 5 6 . Max in Single Turn 1 | . 1 1 1 1 . Garrison Relay 2 | . . . . 2 . Machines Repaired . | . . . . . . Machines Dismantled . | . . . . . . Machines Sabotaged . | . . . . . . Overloaded Fab Kills . | . . . . . . Hacking | -11 -10 -10 -8 -8 -8 --------- Run | Yrd Mat Sub Mat Gar Mat Machines Accessed 19 | . 6 2 8 2 1 Terminals 13 | . 5 . 5 2 1 Fabricators . | . . . . . . Repair Stations . | . . . . . . Recycling Units 2 | . 1 . 1 . . Scanalyzers 1 | . . . 1 . . Garrison Access 1 | . . . 1 . . Total Hacks 45 | . 14 5 17 5 4 Successful 26 | . 8 5 11 . 2 Failed 19 | . 6 . 6 5 2 Catastrophic 4 | . . . 1 2 1 Database Lockouts . | . . . . . . Manual 18 | . 6 . 8 . 4 Terminals 31 | . 11 . 11 5 4 Fabricators . | . . . . . . Repair Stations . | . . . . . . Recycling Units 5 | . 3 . 2 . . Scanalyzers 1 | . . . 1 . . Garrison Access 3 | . . . 3 . . Terminal Hacks 14 | . 3 5 5 . 1 Record 4 | . . 4 . . . Prototype ID Bank 2 | . 1 . 1 . . Level Access Points 1 | . . . . . 1 Branch Access Points 1 | . . . 1 . . Terminal Index 1 | . . . 1 . . Alert Level 1 | . 1 . . . . Locate Traps 1 | . . . 1 . . Hauler Manifests 1 | . 1 . . . . Registered Components 1 | . . . 1 . . Proto ID Catalog 1 | . . 1 . . . Fabricator Hacks . | . . . . . . Repair Station Hacks . | . . . . . . Recycling Unit Hacks 2 | . 1 . 1 . . Report Inventory 2 | . 1 . 1 . . Scanalyzer 1 | . . . 1 . . Retrieve Study 1 | . . . 1 . . Garrison Access Hacks 1 | . . . 1 . . Unlock Access 1 | . . . 1 . . Unauthorized Hacks 8 | . 4 . 3 . 1 Terminals 6 | . 3 . 2 . 1 Botnet 4 | . 1 . 2 . 1 Skim 2 | . 2 . . . . Fabricators . | . . . . . . Repair Stations . | . . . . . . Recycling Units 2 | . 1 . 1 . . Tunnel 2 | . 1 . 1 . . Scanalyzers . | . . . . . . Garrison Access . | . . . . . . Data Cores Recovered . | . . . . . . Used . | . . . . . . Hacking Detections 13 | . 4 . 6 2 1 Full Trace Events 2 | . . . . 2 . Feedback Events . | . . . . . . Feedback Blocked . | . . . . . . Robot Schematics Acquired . | . . . . . . Robots Built . | . . . . . . Authchips . | . . . . . . Time . | . . . . . . Total Robot Build Rating . | . . . . . . Part Schematics Acquired . | . . . . . . Parts Built . | . . . . . . Authchips . | . . . . . . Time . | . . . . . . Total Part Build Rating . | . . . . . . Part Studies Acquired 1 | . . . 1 . . Parts Repaired . | . . . . . . Time . | . . . . . . Parts Recycled . | . . . . . . Recycled Matter . | . . . . . . Retrieved Matter . | . . . . . . Retrieved Components . | . . . . . . Parts Scanalyzed . | . . . . . . Part Schematics Acquired . | . . . . . . Parts Damaged . | . . . . . . Bothacking | -11 -10 -10 -8 -8 -8 ------------ Run | Yrd Mat Sub Mat Gar Mat Used RIF Installer . | . . . . . . Robots Hacked . | . . . . . . Non-combat . | . . . . . . Combat . | . . . . . . Robot Hacks Applied . | . . . . . . Relay Couplers Released 9 | . . . . 9 . Machine Destruction 9 | . . . . 9 . Fabnet Peak Effective % . | . . . . . . Robots Rewired . | . . . . . . Allies Hacked . | . . . . . . Hacks Repelled . | . . . . . . Allies | -11 -10 -10 -8 -8 -8 -------- Run | Yrd Mat Sub Mat Gar Mat Total Allies . | . . . . . . Largest Group . | . . . . . . Highest-Rated Group . | . . . . . . Highest-Rated Ally . | . . . . . . Initial Warlord ECA Mod 4 | . . . . . 4 Total Orders . | . . . . . . Ally Attacks . | . . . . . . Total Damage . | . . . . . . Kills . | . . . . . . Allies Corrupted . | . . . . . . Allies Melted . | . . . . . . Intel | -11 -10 -10 -8 -8 -8 ------- Run | Yrd Mat Sub Mat Gar Mat Active Infowar (turns) 5074 | 50 998 3185 743 5 93 Sensors 623 | . . . 525 5 93 Seismic 4453 | 50 998 3185 220 . . Robot Analysis Total . | . . . . . . Derelict Logs Recovered . | . . . . . . Drone Launches . | . . . . . . Drone Recoveries . | . . . . . . Exploration | -11 -10 -10 -8 -8 -8 ------------- Run | Yrd Mat Sub Mat Gar Mat Turns Passed 8330 | 120 1458 3616 1834 1205 97 Spaces Moved 4462 | 53 772 1806 1069 696 66 Core 1 | 1 . . . . . Treads 886 | 52 752 82 . . . Legs 1657 | . . . 895 696 66 Wheels 1918 | . 20 1724 174 . . Hover . | . . . . . . Flight . | . . . . . . Fastest Speed 50 | 50 115 110 105 110 110 Average Speed 122 | 157 158 118 111 110 110 Slowest Speed 260 | 160 160 240 260 112 110 Overloaded Moves . | . . . . . . Propulsion Burnouts . | . . . . . . Robots Hopped . | . . . . . . Potential Cave-ins . | . . . . . . Cave-ins Triggered . | . . . . . . Exploration Rate (%) 56 | 3 98 88 88 53 10 Regions Visited 5 Branch Regions 1 Pre-discovered Areas 5 | . 1 3 1 . . Known Exits Taken 1 | . . . 1 . . Unknown Exits Taken 3 | 1 1 1 . . . Scrap Searched 2 | . . 2 . . . Spaces Dug 32 | . . . 2 27 3 Terrain Destroyed 80 | . . . 11 34 35 Melee 18 | . . . . 15 3 Projectile 11 | . . . 11 . . AOE 51 | . . . . 19 32 Terrain Rammed . | . . . . . . Walls Destroyed . | . . . . . . Machines Disabled . | . . . . . . Actions | -11 -10 -10 -8 -8 -8 --------- Run | Yrd Mat Sub Mat Gar Mat Total 6663 | 75 905 3194 1478 932 79 Wait 1612 | 3 44 1300 206 56 3 Move 4457 | 52 771 1805 1068 695 66 Hop . | . . . . . . Pick Up 30 | 7 9 5 7 2 . Fast Attach 36 | 7 6 5 9 9 . Attach 15 | . . 3 7 5 . Detach 7 | . 1 3 1 2 . Swap 58 | . 10 13 24 10 1 Drop 44 | . 11 8 21 4 . Fire 268 | 6 48 52 115 42 5 Melee 112 | . . . 16 92 4 Ram 1 | . . . 1 . . Kick 3 | . . . 3 . . Crush 5 | . 5 . . . . Escape Stasis 15 | . . . . 15 . Rewire . | . . . . . . Trap . | . . . . . . Miscellaneous . | . . . . . . Route ------- -11/Scrapyard -10/Materials (discovered 6 exits: [*Mat x3] / [*Min x2] / *Sub) -10/Subcaves (discovered 2 exits: *Mat x2) -8/Materials (discovered 3 exits: *Fac x2 / Gar) -8/Garrison (discovered 2 exits: *Mat x2) -8/Materials (discovered 3 exits: Fac x3) History --------- Turn | Location | Event 7 | -11/Scrapyard | Discovered new exit (range 15) 121 | -11/Scrapyard | Entered Materials 243 | -10/Materials | Discovered new exit (range 3) 304 | -10/Materials | Build established: Mutant 657 | -10/Materials | Discovered new exit (range 10) 787 | -10/Materials | Discovered new exit (range 14) 903 | -10/Materials | Discovered new exit (range 11) 1103 | -10/Materials | Discovered new exit (range 16) 1468 | -10/Materials | Discovered new exit (range 7) 1579 | -10/Materials | Entered Subcaves 1587 | -10/Subcaves | Ambushed by Subdwellers from Twisted Machinery 1677 | -10/Subcaves | Discovered new exit (range 14) 2427 | -10/Subcaves | Build established: Scavenger-Mutant 2513 | -10/Subcaves | Learned location of Zion (-7) 2513 | -10/Subcaves | Met a Zionite searching for "candidates" 2541 | -10/Subcaves | Discovered new exit (range 12) 2746 | -10/Subcaves | Visited 4L-MR0's lab 2762 | -10/Subcaves | Found Meta Core 3046 | -10/Subcaves | Core integrity fell below 50% 3090 | -10/Subcaves | Build established: Mutant 3948 | -10/Subcaves | Ambushed by Subdwellers from Twisted Machinery 4071 | -10/Subcaves | Shifting Twisted Machinery released Sub. Optics 4161 | -10/Subcaves | Shifting Twisted Machinery released Shrapnel Trap 4181 | -10/Subcaves | Shifting Twisted Machinery released Flamer 4473 | -10/Subcaves | Shifting Twisted Machinery released Mak. Hacking Suite 4678 | -10/Subcaves | Visited Clippyterm 4682 | -10/Subcaves | Learned location of Deep Caves (-7) 4682 | -10/Subcaves | Learned location of Section 7 (-2) 4865 | -10/Subcaves | Build established: Scavenger-Mutant 5195 | -10/Subcaves | Entered Materials 5195 | -8/Materials | Evolved 4 slots: Propulsion x1, Utility x2, Weapon x1 5887 | -8/Materials | Build established: Hacker-Gunner 6404 | -8/Materials | Discovered new exit (range 16) 6419 | -8/Materials | Identified exit to Factory 6528 | -8/Materials | Garrison activated, responded to threat 6762 | -8/Materials | Identified exit to Garrison 6898 | -8/Materials | Garrison activated, responded to threat 6954 | -8/Materials | Discovered exit to Factory (range 7) 7029 | -8/Materials | Entered Garrison 7093 | -8/Garrison | Triggered checkpoint 7155 | -8/Garrison | Lost 5 parts (1p1n1u2w) 7156 | -8/Garrison | Garrison Relay disabled 7425 | -8/Garrison | Core integrity fell below 50% 7432 | -8/Garrison | Build established: Scavenger-Mutant 7460 | -8/Garrison | Discovered new exit (range 6) 7468 | -8/Garrison | Identified exit to Materials 7666 | -8/Garrison | Discovered exit to Materials (range 10) 7681 | -8/Garrison | Triggered checkpoint 7726 | -8/Garrison | Garrison Relay disabled 8017 | -8/Garrison | Triggered checkpoint 8079 | -8/Garrison | Triggered checkpoint 8088 | -8/Garrison | Core integrity fell below 20% 8234 | -8/Garrison | Entered Materials 8331 | -8/Materials | Destroyed by H-55 Commando with Gauss Rifle Last Messages --------------- (15,6) (84,87) Map updated. 08313_ U-05 Engineer builds a Wall. 08315_ Y-45 Defender destroyed. 08318_ Acquired 10 matter. 08321_ C-30 ARC bursts open, deploying its payload. 08321_ H-55 Commando unfolds itself. 08321_ Slug penetrates Wall. 08321_ Lgt. Armor Plating destroyed. 08324_ ALERT: Construction progress impeded, dispatching reinforcements to local area. 08324_ R-06 Scavenger collects Imp. Ion Engine. 08326_ U-05 Engineer destroyed. 08326_ U-05 Engineer lays Concrete. 08327_ U-05 Engineer builds a Wall. 08328_ U-05 Engineer destroyed. 08328_ R-06 Scavenger collects Lgt. Treads. 08328_ Slug penetrates Wall. Map ----- +----------------------------------------------------+ | ?????????????????????????????????????????????????? | | ?????????????????????????????????????????????????? | | ?????????????????????????????????????????????????? | | ?????????????????????????????????????????????????? | | ?????????????????????????????????????????????????? | | ?????????????????????????????????????????????????? | | ?????????????????????????????????????????????????? | | ?????????????????????????????????????????????????? | | ! ???????????????????????????????????????????????? | | ??????????????????????????????????????????????? | | ! ??????????????????????????????????????????????? | | #??????????????????????????????????????????????? | | #??????????????????????????????????????????????? | | #??????????????????????????????????????????????? | | #??????????????????????????????????????????????? | | #??????????????????????????????????????????????? | | #??????????????????????????????????????????????? | | #??????????????????########????????????????????? | | #??????????????????# T #????w???????????????? | | #??????????????????# #????????????????????? | | ###??????#######???#""" * ##???????????????????? | | #"######## #???#""" ##???????????????????? | | # " """ #???#""" [##???????????????????? | | # # """ #???# %=#### # ###???????????? | | # """ # """ ########/#r #?????????? | | # """"" # # @ u [????????? | | + """"" # """ + % ????????? | | # """"" =# """ # !h ! ""?????????? | | # """ # """ ###+####### ! | "??????????? | | # # ## #?????" = w "??????????? | | # # = ## #?????? ??????????? | | ########## ## #??????? ??????????? | | ###????????#* ## #???????? + ??????????? | | ???????????######## #?????????#? # ???????????? | | ??????????????????#] [#???????????? #????????????? | | ??????????????????# #????????????? ????????????? | | ??????????????????#####??????????????????????????? | | ?????????????????????????????????????????????????? | | ?????????????????????????????????????????????????? | | ?????????????????????????????????????????????????? | | ?????????????????????????????????????????????????? | | ?????????????????????????????????????????????????? | | ?????????????????????????????????????????????????? | | ?????????????????????????????????????????????????? | | ?????????????????????????????????????????????????? | | ?????????????????????????????????????????????????? | | ?????????????????????????????????????????????????? | | ?????????????????????????????????????????????????? | | | | | +----------------------------------------------------+ Best States ------------- Heat Dissipation 45 Energy Generation 14 Energy Capacity 250 Matter Stores 300 Matter Capacity 300 Sight Range 16 Robot Scan Range 15 Terrain Scan Density 10 Armor Coverage 300 Evasion (%) 63 Recoil Reduction 2 Offensive Hacking 22 Authchip Count 1 Item Schematics ----------------- None Robot Schematics ------------------ None Fabricated ------------ Nothing Repaired ---------- Nothing Studied --------- Aluminum Leg | -8/Materials | Hacked Alien Tech Used ----------------- None Achievements -------------- Bumper Bots Challenges ------------ None Game ------ Seed FieldthrustAerolevRouter Manual? 0 Play Time 01:44:21 Cumulative 494.7 hours Start 2026.03.16 @ 16:16:51 End 2026.03.16 @ 18:52:20 Sessions 1 Manual Loads 0 Difficulty Rogue Special Mode None Game No. 15 Rogue 5 Adventurer 8 Explorer 2 Win Type - Total 13 Types 4/1/1/2/1/2/1/0/1/0 Lore% 55 Gallery% 52 Achievement% 46 Wizard Run 0 Options --------- Layout 1 ASCII 0 Keyboard 0 Movement Arrows Keybinds 0 Fullscreen 1 Font 48/Terminus Map View 50x35 Zoom Use 0% Tactical HUD 1 Map Filters NONE Filters NONE Steam 1 RUN: 6e4817f3-41cc-4b2b-a4bc-0222fefe752b